[Event "84th Armenian-HL-ch 2024"]
[Site "Yerevan"]
[Date "2024.01.15"]
[Round "4.3"]
[White "Ter-Sahakyan, Samvel"]
[Black "Tiraturyan, David"]
[Result "1-0"]
[ECO "E73"]
[WhiteElo "2649"]
[BlackElo "2258"]
[Annotator "TA"]
[PlyCount "111"]
[EventDate "2024.01.11"]
[EventType "tourn"]
[EventCountry "ARM"]
[SourceTitle "playchess.com"]
[Source "ChessBase"]
[SourceQuality "1"]
[TimeControl "40/5400+30:1800+30"]

{[%evp 12,111,42,35,79,29,52,50,42,33,55,50,38,43,54,30,32,21,37,40,46,22,15,22,23,27,16,0,0,0,0,0,0,0,0,0,0,0,0,-112,75,73,70,53,85,101,125,125,123,118,136,133,124,138,514,514,512,499,516,496,504,495,504,495,1202,1110,652,1522,1470,1456,1395,1354,1371,1470,722,350,311,283,259,260,213,36,36,36,37,43,37,43,66,0,0,0,0,0,5173,2079,8506,7700,4627,0,29992,29993]} 1. d4 {[%emt 0:00:05]} Nf6 {[%emt 0:00:15]} 2. c4 {[%emt 0:00:07]} g6 {[%emt 0:00:17]} 3. Nc3 {[%emt 0:00:07]} Bg7 {[%emt 0:00:06]} 4. e4 {[%emt 0:00:04]} d6 {[%emt 0:00:23]} 5. Be2 {[%emt 0:00:09]} O-O {[%emt 0:00:07]} 6. Be3 {[%emt 0:00:27]} c5 {[%emt 0:00:06]} 7. d5 {[%emt 0:00:55]} Qb6 {[%emt 0:00:05] E73: King's Indian: Averbakh Variation without 6...c5.} 8. Qc2 {[%emt 0:05:51]} (8. Qc1 $16) 8... Ng4 {[%emt 0:00:48][%cal Bf6g4,Bg4h6,Bh6f5][%mdl 32] [#]} 9. Bc1 $146 {[%emt 0:03:32]} ({Predecessor:} 9. Bxg4 Bxg4 10. h3 Bd7 11. Nf3 Na6 12. O-O Nc7 13. a4 Na6 14. Bf4 e5 15. dxe6 Bxe6 {½-½ Olsen,F (2401)-Thybo,J (2520) Aarhus Skolernes 50 2022 (8)}) 9... f5 {[%emt 0:01:12] White is slightly better.} 10. Nf3 {[%emt 0:00:54][%cal Bg1f3,Bf3d2,Bd2b3][%mdl 32]} fxe4 {[%emt 0:00:12]} 11. Nxe4 {[%emt 0:00:13]} Qb4+ {[%emt 0:00:04]} 12. Nfd2 {[%emt 0:00:53]} Nh6 {[%emt 0:00:06]} 13. O-O {[%emt 0:00:22]} Nf5 {[%emt 0:00:07]} 14. Nb3 {[%emt 0:00:11]} a5 {[%emt 0:13:09]} 15. a4 {[%emt 0:00:10]} Nd7 {[%emt 0:02:46]} 16. Bg5 {[%emt 0:21:03]} Ne5 {[%emt 0:06:34]} 17. g4 {[%emt 0:18:54]} (17. Kh1 {simplifies} Qb6 18. Bd2 Nd4 19. Nxd4 cxd4 20. f4) 17... Nd4 {[%emt 0:01:40]} 18. Nxd4 {[%emt 0:00:03]} cxd4 {[%emt 0:00:05]} 19. Bxe7 {[%emt 0:00:39]} (19. h3 $5 {[%cal Rg5e7]} d3 20. Bxd3 Nf3+ 21. Kg2 Nxg5 22. Nxg5 $11) 19... d3 $1 {[%emt 0:06:44][%mdl 64] Deflection} 20. Bxd3 {[%emt 0:00:10]} Nf3+ {[%emt 0:00:05]} 21. Kh1 {[%emt 0:05:08]} Bxg4 $1 {[%emt 0:00:25] And now ...Nd4 would win.} 22. Bxd6 {[%emt 0:01:33]} Qb6 {[%emt 0:00:05]} 23. c5 {[%emt 0:07:36]} Qd8 {[%emt 0:00:57][%cal Od8h4]} 24. Bg3 {[%emt 0:10:37] Dodges Qh4} Kh8 $1 {[%emt 0:04:57]} 25. Nd6 {[%emt 0:02:39]} (25. d6 $11 {keeps the balance.}) 25... Qg5 $2 {[%emt 0:02:00]} (25... Nd4 $17 {and life is bright.} 26. Qb1 (26. Qc4 $2 Bf3+ 27. Kg1 Qg5 $19) 26... Bf3+ 27. Kg1 Qg5) 26. Be4 $16 {[%emt 0:00:51]} (26. Nxb7 $2 Nd2 27. Kg1 (27. Be4 $2 Nxe4 {[%mdl 64] Remove Defender} 28. Qxe4 Bf3+ $19) 27... Nf3+ 28. Kh1 Nd2 $19) 26... Qh5 {[%emt 0:01:53]} 27. Ra3 {[%emt 0:01:37]} (27. Nxb7 Rae8 28. Nd6 (28. Nxa5 $2 Nd4 $19 {[%mdl 64] Deflection}) 28... Nd4 29. Nxe8 (29. Qd3 $2 Rxe4 30. Nxe4 Bf3+ 31. Kg1 Qh3 $19) 29... Nxc2 30. Nxg7 Kxg7 $19) 27... Nd4 {[%emt 0:00:54]} 28. Qd2 {[%emt 0:02:00]} Rf3 {[%emt 0:00:08] Hoping for ...Rxa3.} 29. Re3 {[%emt 0:05:37]} (29. Nxb7 $2 Rxa3 30. bxa3 Bf3+ 31. Bxf3 Qxf3+ 32. Kg1 Ne2+ $19) 29... Raf8 {[%emt 0:03:00][%cal Od4f5]} 30. Rfe1 {[%emt 0:04:12]} Qh3 {[%emt 0:00:13][%cal Oh7h5]} 31. c6 {[%emt 0:02:16]} (31. Qxa5 $2 Rxe3 32. Bg2 Bf3 $19) 31... bxc6 {[%emt 0:00:41]} 32. dxc6 {[%emt 0:00:03] Strongly threatening c7.} Nb3 $2 {[%emt 0:00:33][%mdl 8192]} (32... h5 $16 {is a better chance.}) 33. Rxb3 $18 {[%emt 0:04:31]} Rxb3 {[%emt 0:00:05]} 34. Bg2 {[%emt 0:01:26]} (34. Qxa5 $2 Rxg3 $19) 34... Bf3 {[%emt 0:07:18]} 35. Bxf3 {[%emt 0:00:11]} Rbxf3 {[%emt 0:00:03]} 36. Kg1 {[%emt 0:00:19][%cal Bh1g1,Bg1f2,Bf2f3][%mdl 32]} (36. Qxa5 $2 Rxf2 37. Rg1 Rf1 $19) 36... h5 {[%emt 0:00:54]} 37. Qg5 {[%emt 0:00:53]} (37. Qxa5 $2 h4 38. Qd2 (38. Be5 Rxf2) 38... hxg3 39. hxg3 Rxf2 40. Qxf2 Rxf2 41. Kxf2 Qh2+ 42. Kf3 Qh5+ 43. Kf4 Qd5 $19) 37... Rxf2 {[%emt 0:01:58]} (37... R3f6 $142 38. Rc1 (38. Qxa5 $2 h4 $19) 38... Kh7) 38. Bxf2 {[%emt 0:00:10] Threatens to win with Qg3.} Rxf2 {[%emt 0:00:04]} 39. Kxf2 {[%emt 0:01:31]} Qxh2+ {[%emt 0:00:02]} 40. Kf3 {[%emt 0:00:00]} Qxd6 {[%emt 0:00:00][%mdl 4096] Endgame KQR-KQB} 41. c7 {[%emt 0:09:31][%mdl 64] Deflection} ({Less strong is} 41. Qxa5 Qxc6+ 42. Re4 Qf6+ 43. Kg3 (43. Ke2 Qxb2+ 44. Qd2 Qb7 $14) 43... Qxb2 $14) 41... Qxc7 {[%emt 0:02:35]} 42. Qxg6 {[%emt 0:01:03] Active counter play!} Qb7+ {[%emt 0:00:03]} 43. Re4 {[%emt 0:03:18]} (43. Kg3 $142 {White wants to mate with Re8+.} Qc7+ 44. Kh3 Qc8+ 45. Kh4 Qc4+ 46. Re4) 43... Qb3+ {[%emt 0:00:04]} 44. Kf4 {[%emt 0:02:53]} Qb8+ {[%emt 0:00:17]} 45. Kf5 $1 {[%emt 0:02:37]} Qf8+ {[%emt 0:01:01] [#]} 46. Kg5 $2 {[%emt 0:01:58]} (46. Ke6 $1 $18 {[%cal Re6d7] Threatening mate with Kd7.} Qc5 47. Qe8+ Kh7 48. Kd7) 46... Qd8+ $14 {[%emt 0:00:08]} 47. Kxh5 {[%emt 0:02:55]} Qd5+ $1 {[%emt 0:00:03]} 48. Kh4 {[%emt 0:05:31]} Qd8+ {[%emt 0:00:05]} 49. Kh3 {[%emt 0:01:28]} Qd3+ {[%emt 0:00:17]} 50. Kh2 {[%emt 0:01:38]} ({White should play} 50. Kg4 $14 Qd1+ 51. Kf4 Qf1+ 52. Kg5 Qg2+ 53. Kh5 Qf3+ 54. Rg4 Qd5+ 55. Kh4 (55. Rg5 Qh1+ 56. Kg4 Qg2+ 57. Kf5 Qf3+ 58. Ke6 Qc6+ 59. Kf5 Qf3+ 60. Ke6 Qc6+ 61. Kf5 Qf3+ $11) 55... Qh1+ 56. Kg5 Bh6+ 57. Qxh6+ Qxh6+ 58. Kxh6) 50... Be5+ $1 $11 {[%emt 0:04:02]} 51. Kg2 {[%emt 0:00:03][%cal Re4h4]} (51. Rxe5 $2 {is the wrong capture.} Qxg6 52. Re3 Qc2+ 53. Kg3 Qxa4 $19) 51... Qc2+ {[%emt 0:00:44]} 52. Kh3 {[%emt 0:00:35][%cal Re4h4]} Qd3+ $2 {[%emt 0:00:14][%mdl 8192] [#]} (52... Qh2+ $11 53. Kg4 Qg3+ 54. Kh5 Qf3+ 55. Rg4 Qh3+ 56. Rh4 Qg3 57. Qh6+ Kg8 58. Rg4+ Kf7 59. Qg6+ Ke7 60. Rxg3 Bxg3 61. Qxg3 Kd7) 53. Kh4 $1 $18 {[%emt 0:01:22]} Qd8+ {[%emt 0:00:11]} 54. Kh5 {[%emt 0:00:31] Qh6+ would kill now.} Qd1+ {[%emt 0:00:04]} 55. Rg4 {[%emt 0:01:08]} (55. Qg4 $18 Qxg4+ 56. Rxg4 Bxb2 57. Rg5 Bc1 58. Rc5 Ba3 59. Rxa5 Kg7 60. Rf5) 55... Qh1+ {[%emt 0:00:19]} 56. Rh4 {[%emt 0:00:33] An entertaining game by Ter-Sahakyan.   Weighted Error Value: White=0.33/Black=0.17 (very precise)} 1-0

[Event "84th Armenian-HL-ch 2024"]
[Site "Yerevan"]
[Date "2024.01.15"]
[Round "4.4"]
[White "Gharibyan, Mamikon"]
[Black "Piliposyan, Robert"]
[Result "1-0"]
[ECO "D35"]
[WhiteElo "2504"]
[BlackElo "2367"]
[Annotator "TA"]
[PlyCount "117"]
[EventDate "2024.01.11"]
[EventType "tourn"]
[EventCountry "ARM"]
[SourceTitle "playchess.com"]
[Source "ChessBase"]
[SourceQuality "1"]
[TimeControl "40/5400+30:1800+30"]

{[%evp 15,117,12,18,18,22,22,23,0,3,0,1,11,10,0,0,0,18,25,33,25,32,22,26,31,40,33,35,30,32,31,63,51,79,81,69,69,127,82,118,87,155,59,59,59,117,92,102,95,117,109,174,171,194,87,86,86,122,124,123,86,102,86,109,86,140,86,86,85,160,158,166,158,162,161,154,161,161,159,152,162,304,173,413,404,560,514,623,599,673,672,693,623,608,598,598,594,702,672,635,634,12832,10865,29992,29993]} 1. d4 {[%emt 0:00:04]} Nf6 {[%emt 0:00:06]} 2. c4 {[%emt 0:00:13]} e6 {[%emt 0:00:06]} 3. Nf3 {[%emt 0:00:12]} d5 {[%emt 0:00:07]} 4. Nc3 {[%emt 0:00:18]} c6 {[%emt 0:00:21]} 5. cxd5 {[%emt 0:02:27]} exd5 {[%emt 0:00:20]} 6. Bf4 {[%emt 0:02:35]} Bd6 {[%emt 0:00:53]} 7. Bxd6 {[%emt 0:00:50]} Qxd6 {[%emt 0:00:09]} 8. e3 {[%emt 0:00:15]} Bf5 {[%emt 0:06:22]} 9. Nh4 {[%emt 0:01:56] D35: Queen's Gambit Declined: Exchange Variation.} Be6 {[%emt 0:11:07]} 10. Bd3 {[%emt 0:01:16]} O-O {[%emt 0:00:27]} 11. h3 {[%emt 0:01:48] White has an edge.} Qe7 {[%emt 0:16:09]} 12. Nf3 {[%emt 0:06:48]} Nbd7 {[%emt 0:01:44]} 13. O-O {[%emt 0:06:25] [#]} Ne8 $146 {[%emt 0:02:55]} ({Predecessor:} 13... g6 14. Re1 Ne4 15. Nxe4 dxe4 16. Bxe4 Bxh3 17. Nd2 Be6 18. Bf3 Nf6 19. Nb3 h5 {½-½ Livaic,L (2569)-Najer,E (2666) EU-ch 23rd Vrnjacka Banja 2023 (3)}) 14. Qb1 {[%emt 0:20:52]} g6 {[%emt 0:03:31]} 15. b4 {[%emt 0:02:58]} Nd6 {[%emt 0:04:00]} 16. b5 {[%emt 0:01:54]} Bf5 {[%emt 0:02:11]} 17. Bxf5 {[%emt 0:02:02]} Nxf5 {[%emt 0:00:17]} 18. bxc6 {[%emt 0:00:47]} bxc6 {[%emt 0:00:05]} 19. Rc1 {[%emt 0:05:17]} Rab8 {[%emt 0:08:51]} 20. Qc2 {[%emt 0:01:36]} Rfc8 {[%emt 0:04:14]} 21. Rab1 {[%emt 0:03:23]} Nb6 {[%emt 0:05:34]} 22. Ne5 {[%emt 0:06:31][%cal Oe5c6]} Qd6 {[%emt 0:15:57]} 23. Na4 {[%emt 0:06:07][%cal Re5c6]} Ne7 {[%emt 0:06:46]} 24. Nc5 {[%emt 0:02:05]} f6 {[%emt 0:00:21]} 25. Ned3 {[%emt 0:01:14] White is much more active.} Nc4 {[%emt 0:00:55]} (25... Nf5 $1 $14) 26. Rb3 {[%emt 0:05:12]} Rb6 {[%emt 0:03:02]} 27. Qc3 {[%emt 0:02:44]} Rcb8 {[%emt 0:00:22] [#]} (27... Qc7 $142) 28. Nb2 {[%emt 0:05:24]} Nxb2 $14 {[%emt 0:01:20]} 29. Qxb2 {[%emt 0:00:07]} Nc8 {[%emt 0:02:18]} (29... Rxb3 $14 30. axb3 Rb5) 30. Qa3 {[%emt 0:03:37]} Qe7 {[%emt 0:00:28]} 31. Qa4 {[%emt 0:01:51]} Qd6 {[%emt 0:03:23]} 32. g3 {[%emt 0:02:04]} Rxb3 {[%emt 0:00:49]} (32... Kf7 $16 {is a better defense.} 33. Kh2 Kg8) 33. axb3 $18 {[%emt 0:00:54]} ({Don't take} 33. Nxb3 $6 Rb6 $14) 33... Rb6 {[%emt 0:00:08]} 34. Nd3 {[%emt 0:01:45]} (34. e4 $18 {is more deadly.}) 34... Qd7 $16 {[%emt 0:00:18]} 35. h4 {[%emt 0:03:20]} Qb7 {[%emt 0:00:58]} 36. Nc5 {[%emt 0:00:56]} Qe7 {[%emt 0:00:03]} 37. Ra1 {[%emt 0:00:33]} Qc7 {[%emt 0:00:34]} 38. Qa5 {[%emt 0:00:25]} Qe7 {[%emt 0:00:42]} 39. Ra2 {[%emt 0:00:32]} Qc7 {[%emt 0:01:08]} (39... Kg7 $142) 40. Kg2 {[%emt 0:00:00]} ({Better is} 40. Rc2) 40... Qe7 {[%emt 0:00:00]} 41. Ra1 {[%emt 0:02:49]} Qc7 {[%emt 0:04:03] [#]} (41... h5 $142) 42. h5 $1 {[%emt 0:03:49][%mdl 512]} gxh5 {[%emt 0:06:00]} 43. Rh1 {[%emt 0:02:42]} Nd6 {[%emt 0:00:50]} 44. Rxh5 {[%emt 0:01:18]} Qe7 {[%emt 0:01:46]} 45. Rh4 {[%emt 0:01:42]} Kh8 {[%emt 0:00:52]} 46. Rf4 {[%emt 0:04:24]} Kg7 {[%emt 0:03:22]} 47. Qa1 {[%emt 0:02:24]} Nf7 {[%emt 0:03:07]} (47... Rb8 $142 48. Qd1 a5) 48. Qb1 {[%emt 0:01:51]} (48. e4 $142) 48... Nh6 $2 {[%emt 0:02:22]} (48... Nd6 {might work better.} 49. Qd1 (49. Rh4 Kh8 $16) 49... Rb8) 49. Rh4 $18 {[%emt 0:01:37] aiming for Qh1.} f5 {[%emt 0:00:42]} 50. Qh1 {[%emt 0:00:55]} Qd6 {[%emt 0:00:05]} 51. Rh5 {[%emt 0:00:39]} Rb8 {[%emt 0:00:23]} 52. Qh4 {[%emt 0:06:34] Qg5+ is the strong threat.} Re8 {[%emt 0:01:31]} 53. Nb7 {[%emt 0:01:04][%cal Bc5b7,Bb7d6,Bd6f7,Bf7g5,Bg5e6][%mdl 32]} (53. Qg5+ Qg6 54. Nd7 Qxg5 55. Rxg5+ Kh8 $18) 53... Qe6 {[%emt 0:00:12]} 54. Qg5+ {[%emt 0:00:54]} Qg6 {[%emt 0:00:07]} 55. Nd6 {[%emt 0:00:41] Black is weak on the dark squares} Rf8 {[%emt 0:01:33]} 56. Qe7+ {[%emt 0:00:07]} Rf7 {[%emt 0:00:04]} 57. Nxf7 {[%emt 0:01:06]} Qxh5 {[%emt 0:00:10]} 58. Ng5+ {[%emt 0:01:16][%mdl 64] Discovered Attack} Kg6 {[%emt 0:00:59]} 59. Ne6 {[%emt 0:00:43] Weighted Error Value: White=0.16 (very precise) /Black=0.39} ({Weaker is} 59. Qxh7+ Kxg5 60. Qe7+ Kg6 $11) 1-0

[Event "84th Armenian-HL-ch 2024"]
[Site "Yerevan"]
[Date "2024.01.15"]
[Round "4.5"]
[White "Harutyunyan, Tigran K."]
[Black "Hovhannisyan, Robert"]
[Result "1/2-1/2"]
[ECO "D02"]
[WhiteElo "2523"]
[BlackElo "2611"]
[Annotator "TA"]
[PlyCount "68"]
[EventDate "2024.01.11"]
[EventType "tourn"]
[EventCountry "ARM"]
[SourceTitle "playchess.com"]
[Source "ChessBase"]
[SourceQuality "1"]
[TimeControl "40/5400+30:1800+30"]

{[%evp 9,68,0,24,20,21,29,39,45,35,29,37,37,43,35,36,31,69,0,6,0,48,-23,31,20,15,0,0,0,0,0,0,0,0,0,17,-3,0,0,0,0,0,-5,-5,-11,-11,-11,-11,-11,-11,-11,-11,-11,-11,-11,-3,-3,-3,-3,-3,-3,0]} 1. d4 {[%emt 0:00:09]} Nf6 {[%emt 0:00:06]} 2. Nf3 {[%emt 0:00:09]} d5 {[%emt 0:00:13]} 3. Bf4 {[%emt 0:01:45]} c5 {[%emt 0:00:22]} 4. e3 {[%emt 0:01:31]} Nc6 {[%emt 0:00:06]} 5. Nbd2 {[%emt 0:00:07]} Nh5 {[%emt 0:00:42]} 6. dxc5 {[%emt 0:01:31] D02: 1 d4 d5 2 Nf3 sidelines, including 2...Nf6 3 g3 and 2...Nf6 3 Bf4.} Nxf4 {[%emt 0:00:27]} 7. exf4 {[%emt 0:00:08]} g6 {[%emt 0:00:21]} 8. c3 {[%emt 0:01:39] White is slightly better.} Bh6 {[%emt 0:01:06]} 9. g3 {[%emt 0:02:03]} O-O {[%emt 0:01:34][%cal Oe7e5]} 10. Bg2 {[%emt 0:06:55]} b6 {[%emt 0:08:21] [#]} 11. Nb3 $146 {[%emt 0:04:38]} ({Predecessor:} 11. cxb6 Qxb6 12. O-O Ba6 13. Re1 Qxb2 14. Qb3 Qxb3 15. axb3 Bb7 16. b4 e6 17. Nb3 {½-½ Harikrishna,P (2704)-Pichot,A (2638) ChessKid Cup Div 3 W rapid 2023 (5.2)}) 11... bxc5 {[%emt 0:08:27]} 12. Nxc5 {[%emt 0:00:34]} Qb6 {[%emt 0:00:46]} 13. Nd3 {[%emt 0:03:28] Excellent horsemanship.} ({Better is} 13. Qxd5 $14 Rd8 14. Qc4) 13... Ba6 $11 {[%emt 0:06:36]} 14. O-O {[%emt 0:00:26]} Rfd8 {[%emt 0:11:42]} (14... Rac8 $11) 15. b4 {[%emt 0:15:10]} (15. b3 $14) 15... d4 {[%emt 0:10:13]} (15... Bg7 $11) 16. Nxd4 {[%emt 0:04:42]} Nxd4 {[%emt 0:00:30] The position is equal.} 17. cxd4 {[%emt 0:03:41]} (17. Bxa8 {with more complications.} Nc2 18. b5 Bxb5 19. Rb1) 17... Rac8 {[%emt 0:02:24]} 18. a4 $1 {[%emt 0:06:48]} Rxd4 {[%emt 0:09:51]} 19. b5 {[%emt 0:00:34]} Rcd8 {[%emt 0:03:05] [#] ...Bc8 would be deadly.} 20. bxa6 {[%emt 0:00:31] And now Ra3 would win.} Rxd3 {[%emt 0:00:07]} 21. Qe2 {[%emt 0:00:58]} e6 {[%emt 0:00:52]} 22. Rfd1 {[%emt 0:03:13]} Rxd1+ {[%emt 0:12:22]} 23. Rxd1 {[%emt 0:00:43]} Rxd1+ {[%emt 0:00:02]} 24. Qxd1 {[%emt 0:00:09]} Qxa6 {[%emt 0:00:02][%mdl 4096] Endgame KQB-KQB} 25. Qc2 {[%emt 0:01:59]} Bf8 {[%emt 0:00:42]} 26. Bf3 {[%emt 0:00:50]} Qb6 {[%emt 0:00:18]} 27. Kg2 {[%emt 0:00:17]} Bc5 {[%emt 0:00:09]} 28. h4 {[%emt 0:00:18]} h5 {[%emt 0:02:20]} 29. Be4 {[%emt 0:00:25]} Kf8 {[%emt 0:01:33]} 30. Bf3 {[%emt 0:00:19]} Qb4 {[%emt 0:00:33]} 31. Bc6 {[%emt 0:00:19]} a5 {[%emt 0:01:20]} 32. Bf3 {[%emt 0:01:04]} Qd4 {[%emt 0:00:07]} 33. Bc6 {[%emt 0:00:13]} Ke7 {[%emt 0:01:02]} 34. Bf3 {[%emt 0:00:23]} Kf8 {[%emt 0:03:47] Weighted Error Value: White=0.10 (very precise) /Black=0.08 (flawless)} 1/2-1/2

[Event "84th Armenian-HL-ch 2024"]
[Site "Yerevan"]
[Date "2024.01.16"]
[Round "5.1"]
[White "Hovhannisyan, Robert"]
[Black "Gharibyan, Mamikon"]
[Result "1-0"]
[ECO "C48"]
[WhiteElo "2611"]
[BlackElo "2504"]
[Annotator "RC"]
[PlyCount "73"]
[EventDate "2024.01.11"]
[EventType "tourn"]
[EventCountry "ARM"]
[SourceTitle "playchess.com"]
[Source "ChessBase"]
[SourceQuality "1"]
[TimeControl "40/5400+30:1800+30"]

1. e4 {[%emt 0:00:03]} e5 {[%emt 0:00:09]} 2. Nf3 {[%emt 0:00:06]} Nc6 {[%emt 0:00:06]} 3. Nc3 {[%emt 0:00:09]} Nf6 {[%emt 0:00:15]} 4. Bb5 {[%emt 0:00:05]} Nd4 {[%emt 0:00:45]} 5. Nxd4 {[%emt 0:00:23]} exd4 {[%emt 0:00:07]} 6. e5 {[%emt 0:00:02]} dxc3 {[%emt 0:00:14]} 7. exf6 {[%emt 0:00:06]} Qxf6 {[%emt 0:00:06]} 8. dxc3 {[%emt 0:00:04]} Bc5 {[%emt 0:00:11]} 9. Qe2+ {[%emt 0:00:14]} Qe6 {[%emt 0:00:31]} 10. Qxe6+ {[%emt 0:00:17]} fxe6 {[%emt 0:00:06]} 11. f3 {[%emt 0:00:07]} c6 {[%emt 0:10:48]} 12. Bd3 {[%emt 0:00:26]} O-O {[%emt 0:01:38]} 13. Bg5 {[%emt 0:05:59]} d5 {[%emt 0:05:33]} 14. O-O-O {[%emt 0:01:51]} b5 {[%emt 0:26:18]} 15. Bh4 {[%emt 0:14:04]} a5 {[%emt 0:03:57]} 16. Rde1 {[%emt 0:03:18]} Bd7 {[%emt 0:03:24]} 17. Bg3 {[%emt 0:01:56]} Be7 {[%emt 0:02:43]} 18. b3 {[%emt 0:09:00]} a4 {[%emt 0:16:16]} 19. b4 {[%emt 0:03:10]} c5 {[%emt 0:06:32]} 20. bxc5 {[%emt 0:01:58]} Bxc5 {[%emt 0:04:53]} 21. Be5 {[%emt 0:00:58]} Be7 {[%emt 0:01:58]} 22. f4 {[%emt 0:08:11]} Rac8 {[%emt 0:00:44]} 23. g3 {[%emt 0:02:28]} Bf6 {[%emt 0:02:11]} 24. Kd2 {[%emt 0:07:02]} Rc5 {[%emt 0:01:23]} 25. Bd4 {[%emt 0:04:57]} Rc7 {[%emt 0:04:00]} 26. Re3 {[%emt 0:04:11]} Kf7 {[%emt 0:00:38]} 27. h4 {[%emt 0:06:53]} h5 {[%emt 0:01:53]} 28. Be5 {[%emt 0:12:18]} Rc5 {[%emt 0:02:39]} 29. Be2 {[%emt 0:00:36]} Bxe5 {[%emt 0:01:38]} 30. fxe5 {[%emt 0:00:25]} Kg6 {[%emt 0:00:41]} 31. Rf1 {[%emt 0:01:28]} Rxf1 {[%emt 0:01:12]} 32. Bxf1 {[%emt 0:00:05]} Kf5 {[%emt 0:02:26]} 33. Bh3+ {[%emt 0:14:10]} Kg6 {[%emt 0:01:05]} 34. Rf3 {[%emt 0:00:30]} Rc4 {[%emt 0:00:30]} 35. Bf1 {[%emt 0:00:30]} Rg4 {[%emt 0:00:30]} 36. Bd3+ {[%emt 0:00:30]} Kh6 {[%emt 0:00:30]} 37. Rf7 {[%emt 0:00:00]} 1-0

[Event "84th Armenian-HL-ch 2024"]
[Site "Yerevan"]
[Date "2024.01.16"]
[Round "5.2"]
[White "Piliposyan, Robert"]
[Black "Petrosyan, Manuel"]
[Result "0-1"]
[ECO "E91"]
[WhiteElo "2367"]
[BlackElo "2627"]
[Annotator "TA"]
[PlyCount "90"]
[EventDate "2024.01.11"]
[EventType "tourn"]
[EventCountry "ARM"]
[SourceTitle "playchess.com"]
[Source "ChessBase"]
[SourceQuality "1"]
[TimeControl "40/5400+30:1800+30"]

{[%evp 20,90,40,39,36,25,27,31,41,27,26,27,62,33,34,25,25,12,23,-15,-14,-15,-4,-25,-25,-85,-102,-121,-122,-164,-178,-172,-169,-120,-129,-153,-166,-214,-222,-202,-128,-379,-362,-353,-283,-443,-448,-458,-462,-454,-339,-595,-565,-606,-606,-615,-616,-608,-598,-543,-542,-763,-747,-735,-741,-760,-731,-933,-973,-943,-929,-931,-898]} 1. d4 {[%emt 0:00:03]} Nf6 {[%emt 0:08:15]} 2. c4 {[%emt 0:00:16]} c5 {[%emt 0:00:12]} 3. d5 {[%emt 0:00:24]} g6 {[%emt 0:00:26]} 4. Nc3 {[%emt 0:00:42]} Bg7 {[%emt 0:00:09]} 5. e4 {[%emt 0:00:24]} d6 {[%emt 0:00:09]} 6. Nf3 {[%emt 0:01:32]} O-O {[%emt 0:02:24]} 7. Be2 {[%emt 0:00:19]} e6 {[%emt 0:00:20]} 8. O-O {[%emt 0:00:05]} exd5 {[%emt 0:00:23]} 9. exd5 {[%emt 0:00:16]} Bg4 $1 {[%emt 0:00:05][%mdl 4] is recently more successful than 9...Re8.} 10. h3 {[%emt 0:04:58]} Bxf3 {[%emt 0:00:58]} 11. Bxf3 {[%emt 0:00:05]} Nbd7 {[%emt 0:00:18] E91: King's Indian: Classical: 6 Be2, unusual replies including 6...c5 and 6...Bg4.} 12. Bf4 {[%emt 0:16:10]} Ne8 {[%emt 0:01:30]} 13. Qd2 {[%emt 0:05:17]} f5 $5 {[%emt 0:08:00][%mdl 4] White is slightly better. Exploring less charted territory.} 14. Be2 {[%emt 0:07:59] [#]} Be5 $146 {[%emt 0:10:34]} ({Predecessor:} 14... Ne5 15. Rfe1 Nf7 16. Be3 g5 17. f4 h6 18. Rf1 Qf6 19. Rae1 Qg6 20. Bd3 g4 21. hxg4 Qxg4 {0-1 Van der Werf,M (2389)-Korchmar,V (2450) Titled Tuesday intern op 11th Jan blitz 2022 (3)}) 15. Bg5 {[%emt 0:11:40]} Ndf6 {[%emt 0:09:13]} 16. Be3 {[%emt 0:09:23]} Qa5 {[%emt 0:04:00]} 17. Rac1 {[%emt 0:03:53]} a6 {[%emt 0:06:28]} 18. a3 {[%emt 0:10:42]} Rb8 {[%emt 0:06:48]} 19. b4 {[%emt 0:07:34]} Qxa3 {[%emt 0:14:11]} 20. bxc5 {[%emt 0:00:57]} dxc5 {[%emt 0:02:02]} 21. Nb1 {[%emt 0:04:43]} Qb4 {[%emt 0:04:18]} 22. Qxb4 {[%emt 0:00:30]} (22. Qd3 $11 {keeps the balance.}) 22... cxb4 $17 {[%emt 0:00:03]} 23. f4 {[%emt 0:00:05] [#]} Bc7 {[%emt 0:04:38]} 24. c5 {[%emt 0:00:46]} Nxd5 {[%emt 0:00:06]} 25. Bc4 {[%emt 0:00:05]} Nef6 {[%emt 0:02:30]} 26. Bd4 {[%emt 0:00:53]} b5 {[%emt 0:00:56]} 27. Ba2 {[%emt 0:02:32]} Rf7 {[%emt 0:01:03]} 28. c6 {[%emt 0:04:27] [#]} (28. Rcd1 {was worth a try.}) 28... Kf8 $1 $19 {[%emt 0:05:53]} ({Stronger than} 28... Bxf4 29. Rce1 (29. Rxf4 $2 Nxf4 30. Rc2 N6h5 $19) 29... Bc7 30. Bxf6 Rxf6 31. Rd1 $15 (31. Bxd5+ Kf8 $15)) 29. Bc5+ {[%emt 0:01:06]} Kg7 {[%emt 0:00:05] aiming for ...Rd8.} 30. Bd4 $2 {[%emt 0:01:42][%mdl 8192] White does not recover from this.} (30. g3 $17) 30... Nxf4 {[%emt 0:02:43]} 31. Rce1 {[%emt 0:02:27] Repels Ne2+} a5 {[%emt 0:00:20][%cal Ob8d8] White must now prevent ...Rd8!} 32. g3 {[%emt 0:01:08]} (32. Bxf7 {might work better.} Kxf7 33. Be5 Bxe5 34. Rxe5) 32... Nxh3+ {[%emt 0:00:48]} 33. Kg2 {[%emt 0:00:05]} Ng5 {[%emt 0:00:03]} 34. g4 {[%emt 0:01:54]} f4 {[%emt 0:00:51][%cal Bf5f4,Bf4f3,Bf3f2][%mdl 32]} 35. Bxf7 $2 {[%emt 0:00:55]} (35. Nd2 Rd8 36. Ne4 f3+ 37. Kh1 Rxd4 38. Nxg5 Rxg4 39. Ne6+ Kh6 40. Rxf3) 35... Kxf7 {[%emt 0:01:14] Black is clearly winning.} 36. Be5 {[%emt 0:00:08]} f3+ {[%emt 0:00:27]} 37. Kg3 {[%emt 0:00:35]} Nge4+ {[%emt 0:03:04]} 38. Kf4 {[%emt 0:00:29]} g5+ {[%emt 0:00:53]} 39. Kf5 {[%emt 0:00:04]} Bxe5 {[%emt 0:00:13]} 40. Kxe5 {[%emt 0:00:00]} Re8+ {[%emt 0:00:00]} ({Less strong is} 40... Nxg4+ 41. Kxe4 f2 42. Kd4 $16) 41. Kd4 {[%emt 0:00:44]} f2 {[%emt 0:04:29]} 42. Rc1 {[%emt 0:01:52]} Ke7 {[%emt 0:15:26]} 43. Ke3 {[%emt 0:04:05]} Kd6 {[%emt 0:03:14]} (43... Nxg4+ $2 {is the wrong capture.} 44. Kxe4 Kd6+ 45. Kd3 $17) 44. Kf3 {[%emt 0:03:00]} Kc7 {[%emt 0:00:11]} 45. Rfd1 {[%emt 0:01:23]} Re6 {[%emt 0:01:10] Excellently played by Petrosyan!   Weighted Error Value: White=0.51/Black=0.11 (very precise)} 0-1